{"text_format":"1","workbook":"xlsx","n_sheets":1,"sheets":["Hoja1"],"not_rendered":{"charts":0,"images":0,"macros":1,"external_links":0,"defined_names":0,"comments":0,"pivot_tables":0},"unopened":[],"bounds":{"document_bytes":16777216,"sheet_cells":100000,"rows_first":2000,"rows_last":500,"rows_between":2000,"halvings":0,"cell_chars":16384,"cell_head_chars":4096},"cells_cut":0,"cells_raw":0,"read":"whole","date_system":"1900"}

{"sheet":"Hoja1","index":0,"n_rows":29,"n_cols":42,"rows_kept":29,"cut":false,"hidden":false,"merged":[[1,23,1,24],[2,23,2,24],[1,13,2,14],[1,26,2,27],[1,38,2,39],[0,26,0,35],[1,28,1,35],[2,28,2,29],[2,30,2,31],[2,32,2,33],[2,34,2,35],[1,40,2,40],[1,41,2,41],[0,38,0,41],[0,1,0,10],[2,3,2,4],[2,5,2,6],[2,7,2,8],[2,9,2,10],[1,3,1,10],[1,1,2,2],[0,13,0,22],[2,15,2,16],[2,17,2,18],[2,19,2,20],[2,21,2,22],[1,15,1,22]]}
[null,"COMPETENCIA LINGUÍSTICA 2º PRIMARIA (I)",null,null,null,null,null,null,null,null,null,null,null,"COMPETENCIA LINGUÍSTICA 2º PRIMARIA (II)",null,null,null,null,null,null,null,null,null,null,null,null,"COMPETENCIA LINGUÍSTICA 2º PRIMARIA (III)",null,null,null,null,null,null,null,null,null,null,null,"COMPETENCIA LINGUÍSTICA 2º PRIMARIA (IV)"]
[null,"2º A",null,"LINGUA CASTELÁ",null,null,null,null,null,null,null,null,null,"2º A",null,"LINGUA GALEGA",null,null,null,null,null,null,null,"MATEMÁTICAS",null,null,"2º A",null,"LINGUA ESTRANXEIRA -INGLÉS",null,null,null,null,null,null,null,null,null,"2º A",null,"NOTA MEDIA","CUALIFICACIÓN"]
[null,null,null,"2º-LCB1.11.1 - Emprega de xeito efectivo a linguaxe oral para comunicarse: escoita e pregunta para asegurar a comprensión.",null,"2º-LCB1.5.1 - Comprende, de forma global, a información xeral dun texto oral sinxelo de uso habitual, do ámbito escolar e social.",null,"2º-LCB2.1.1 - Le en voz alta, con pronunciación e entoación axeitada, diferentes tipos de textos moi sinxelos apropiados á súa idade.",null,"2º-LCB34.2 - Elabora e presenta, de forma guiada, textos sinxelos, que ilustra con imaxes de carácter redundante co contido.",null,null,null,null,null,"2º-LGB1.5.3 - Utiliza a lingua galega en calquera situación de comunicación dentro da aula e valora o seu uso fóra dela.",null,"2º-LGB2.1.2 - Comprende informacións concretas en textos sinxelos, propios de situacións cotiás, como invitacións, felicitacións, notas e avisos ou mensaxes curtas.",null,"2º-LGB3.1.2 - Elabora o texto, con coherencia xeral e de xeito creativo.",null,"2º-LGB5.2.2 - Le, de forma guiada, textos en voz alta, adecuados aos intereses infantís, para chegar progresivamente á expresividade lectora.",null,"2º-MTB1.1.1 - Explica oralmente o proceso seguido para resolver un problema.",null,null,null,null,"2º-PLEB1.1 - Comprende a información esencial dun conto, rima ou canción moi breves, e moi sinxelos, previamente traballados, emitidos lentamente, cunha pronuncia ben articulada, e con apoios visuais moi redundantes que axuden á comprensión.",null,"2º-PLEB2.1 - Fai presentacións moi breves e elementais preparadas e ensaiadas sobre temas moi próximos....(dicir o seu nome e idade, a cor do pelo e os ollos, presentar á súa familia, indicar as súas preferencias) cunha pronuncia e entoación comprensibles.",null,"2º-PLEB3.2 - Comprende a idea principal dunha historia sinxela acompañada de apoio visual e identifica os e as personaxes principais.",null,"2º-PLEB4.2 - Escribe pequenos diálogos ou narracións moi sinxelas e breves seguindo un modelo dado e respectando a estrutura gramatical máis sinxela."]
[null,null,"ALUMNO /A","Nota",0.05,"Nota",0.1,"Nota",0.1,"Nota",0.1,null,null,null,"ALUMNO /A","Nota",0.1,"Nota",0.1,"Nota",0.05,"Nota",0.1,"Nota",0.1,null,null,"ALUMNO /A","Nota",0.05,"Nota",0.05,"Nota",0.05,"Nota",0.05,null,null,null,"ALUMNO /A",1]
[null,1,null,null,{"$f":"D5*0.05","v":0},null,{"$f":"F5*0.1","v":0},null,{"$f":"H5*0.1","v":0},null,{"$f":"J5*0.1","v":0},null,null,1,null,null,{"$f":"P5*0.1","v":0},null,{"$f":"R5*0.1","v":0},null,{"$f":"T5*0.05","v":0},null,{"$f":"V5*0.1","v":0},null,{"$f":"X5*0.1","v":0},null,1,null,null,{"$f":"AC5*0.05","v":0},null,{"$f":"AE5*0.05","v":0},null,{"$f":"AG5*0.05","v":0},null,{"$f":"AI5*0.05","v":0},null,null,1,null,{"$f":"SUM(AJ5,AH5,AF5,AD5,Y5,W5,U5,S5,Q5,K5,I5,G5,E5)","v":0},{"$f":"IF(AO5<5,\"INSUFICIENTE\",IF(AO5<6,\"SUFICIENTE\",IF(AO5<7,\"BIEN\",IF(AO5<9,\"NOTABLE\",\"SOBRESALIENTE\"))))","v":"INSUFICIENTE"}]
[null,2,null,null,{"$f":"D6*0.05","v":0},null,{"$f":"F6*0.1","v":0},null,{"$f":"H6*0.1","v":0},null,{"$f":"J6*0.1","v":0},null,null,2,null,null,{"$f":"P6*0.1","v":0},null,{"$f":"R6*0.1","v":0},null,{"$f":"T6*0.05","v":0},null,{"$f":"V6*0.1","v":0},null,{"$f":"X6*0.1","v":0},null,2,null,null,{"$f":"AC6*0.05","v":0},null,{"$f":"AE6*0.05","v":0},null,{"$f":"AG6*0.05","v":0},null,{"$f":"AI6*0.05","v":0},null,null,2,null,0,{"$f":"IF(AO6<5,\"INSUFICIENTE\",IF(AO6<6,\"SUFICIENTE\",IF(AO6<7,\"BIEN\",IF(AO6<9,\"NOTABLE\",\"SOBRESALIENTE\"))))","v":"INSUFICIENTE"}]
[null,3,null,null,0,null,0,null,0,null,0,null,null,3,null,null,0,null,0,null,0,null,0,null,0,null,3,null,null,0,null,0,null,0,null,0,null,null,3,null,0,"INSUFICIENTE"]
[null,4,null,null,0,null,0,null,0,null,0,null,null,4,null,null,0,null,0,null,0,null,0,null,0,null,4,null,null,0,null,0,null,0,null,0,null,null,4,null,0,"INSUFICIENTE"]
[null,5,null,null,0,null,0,null,0,null,0,null,null,5,null,null,0,null,0,null,0,null,0,null,0,null,5,null,null,0,null,0,null,0,null,0,null,null,5,null,0,"INSUFICIENTE"]
[null,{"$f":"B9+1","v":6},null,null,0,null,0,null,0,null,0,null,null,{"$f":"N9+1","v":6},null,null,0,null,0,null,0,null,0,null,0,null,{"$f":"AA9+1","v":6},null,null,0,null,0,null,0,null,0,null,null,{"$f":"AM9+1","v":6},null,0,"INSUFICIENTE"]
[null,{"$f":"B10+1","v":7},null,null,0,null,0,null,0,null,0,null,null,{"$f":"N10+1","v":7},null,null,0,null,0,null,0,null,0,null,0,null,{"$f":"AA10+1","v":7},null,null,0,null,0,null,0,null,0,null,null,{"$f":"AM10+1","v":7},null,0,"INSUFICIENTE"]
[null,8,null,null,0,null,0,null,0,null,0,null,null,8,null,null,0,null,0,null,0,null,0,null,0,null,8,null,null,0,null,0,null,0,null,0,null,null,8,null,0,"INSUFICIENTE"]
[null,9,null,null,0,null,0,null,0,null,0,null,null,9,null,null,0,null,0,null,0,null,0,null,0,null,9,null,null,0,null,0,null,0,null,0,null,null,9,null,0,"INSUFICIENTE"]
[null,10,null,null,0,null,0,null,0,null,0,null,null,10,null,null,0,null,0,null,0,null,0,null,0,null,10,null,null,0,null,0,null,0,null,0,null,null,10,null,0,"INSUFICIENTE"]
[null,11,null,null,0,null,0,null,0,null,0,null,null,11,null,null,0,null,0,null,0,null,0,null,0,null,11,null,null,0,null,0,null,0,null,0,null,null,11,null,0,"INSUFICIENTE"]
[null,12,null,null,0,null,0,null,0,null,0,null,null,12,null,null,0,null,0,null,0,null,0,null,0,null,12,null,null,0,null,0,null,0,null,0,null,null,12,null,0,"INSUFICIENTE"]
[null,13,null,null,0,null,0,null,0,null,0,null,null,13,null,null,0,null,0,null,0,null,0,null,0,null,13,null,null,0,null,0,null,0,null,0,null,null,13,null,0,"INSUFICIENTE"]
[null,14,null,null,0,null,0,null,0,null,0,null,null,14,null,null,0,null,0,null,0,null,0,null,0,null,14,null,null,0,null,0,null,0,null,0,null,null,14,null,0,"INSUFICIENTE"]
[null,15,null,null,0,null,0,null,0,null,0,null,null,15,null,null,0,null,0,null,0,null,0,null,0,null,15,null,null,0,null,0,null,0,null,0,null,null,15,null,0,"INSUFICIENTE"]
[null,16,null,null,0,null,0,null,0,null,0,null,null,16,null,null,0,null,0,null,0,null,0,null,0,null,16,null,null,0,null,0,null,0,null,0,null,null,16,null,0,"INSUFICIENTE"]
[null,17,null,null,0,null,0,null,0,null,0,null,null,17,null,null,0,null,0,null,0,null,0,null,0,null,17,null,null,0,null,0,null,0,null,0,null,null,17,null,0,"INSUFICIENTE"]
[null,18,null,null,0,null,0,null,0,null,0,null,null,18,null,null,0,null,0,null,0,null,0,null,0,null,18,null,null,0,null,0,null,0,null,0,null,null,18,null,0,"INSUFICIENTE"]
[null,19,null,null,0,null,0,null,0,null,0,null,null,19,null,null,0,null,0,null,0,null,0,null,0,null,19,null,null,0,null,0,null,0,null,0,null,null,19,null,0,"INSUFICIENTE"]
[null,20,null,null,0,null,0,null,0,null,0,null,null,20,null,null,0,null,0,null,0,null,0,null,0,null,20,null,null,0,null,0,null,0,null,0,null,null,20,null,0,"INSUFICIENTE"]
[null,21,null,null,0,null,0,null,0,null,0,null,null,21,null,null,0,null,0,null,0,null,0,null,0,null,21,null,null,0,null,0,null,0,null,0,null,null,21,null,0,"INSUFICIENTE"]
[null,22,null,null,0,null,0,null,0,null,0,null,null,22,null,null,0,null,0,null,0,null,0,null,0,null,22,null,null,0,null,0,null,0,null,0,null,null,22,null,0,"INSUFICIENTE"]
[null,23,null,null,0,null,0,null,0,null,0,null,null,23,null,null,0,null,0,null,0,null,0,null,0,null,23,null,null,0,null,0,null,0,null,0,null,null,23,null,0,"INSUFICIENTE"]
[null,24,null,null,0,null,0,null,0,null,0,null,null,24,null,null,0,null,0,null,0,null,0,null,0,null,24,null,null,0,null,0,null,0,null,0,null,null,24,null,0,"INSUFICIENTE"]
[null,25,null,null,0,null,0,null,0,null,0,null,null,25,null,null,0,null,0,null,0,null,0,null,0,null,25,null,null,0,null,0,null,0,null,0,null,null,25,null,0,"INSUFICIENTE"]